fUSD/lending_fUSD_20250106
["ID","MTS","AMOUNT","RATE_DAILY","PERIOD"]
[347814273,1736125841150,-500.0,0.0001125,2]
[347814275,1736125841159,-500.0,0.0001125,2]
[347814277,1736125841169,-544.72,0.0001125,2]
[347814279,1736125841178,-500.0,0.0001125,2]
[347814281,1736125841187,-500.0,0.0001125,2]
[347814283,1736125841197,-500.0,0.0001125,2]
[347814285,1736125841206,-500.0,0.0001125,2]
[347814287,1736125841215,-500.0,0.0001125,2]
[347814289,1736125841224,-500.0,0.0001125,2]
[347814291,1736125841233,-500.0,0.0001125,2]
[347814293,1736125841242,-500.0,0.0001125,2]
[347814295,1736125841251,-500.0,0.0001125,2]
[347814297,1736125841260,-500.0,0.0001125,2]
[347814299,1736125841269,-500.0,0.0001125,2]
[347814301,1736125841279,-500.0,0.0001125,2]
[347814303,1736125841288,-500.0,0.0001125,2]
[347814305,1736125841297,-500.0,0.0001125,2]
[347814307,1736125841306,-500.0,0.0001125,2]
[347814309,1736125841315,-500.0,0.0001125,2]
[347814311,1736125841324,-500.0,0.0001125,2]
[347814313,1736125841333,-95.99455716,0.0001125,2]
[347814319,1736125841383,-404.00544284,0.0001125,2]
[347814321,1736125841392,-500.0,0.0001125,2]
[347814323,1736125841402,-500.0,0.0001125,2]
[347814325,1736125841411,-500.0,0.0001125,2]
[347814327,1736125841420,-500.0,0.0001125,2]
[347814329,1736125841430,-500.0,0.0001125,2]
[347814331,1736125841439,-500.0,0.0001125,2]
[347814333,1736125841448,-500.0,0.0001125,2]
[347814335,1736125841456,-500.0,0.0001125,2]
[347814337,1736125841466,-500.0,0.0001125,2]
[347814339,1736125841475,-500.0,0.0001125,2]
[347814341,1736125841484,-500.0,0.0001125,2]
[347814343,1736125841494,-477.75844708,0.0001125,2]
[347814345,1736125841503,-500.0,0.0001125,2]
[347814347,1736125841512,-500.0,0.0001125,2]
[347814349,1736125841521,-500.0,0.0001125,2]
[347814351,1736125841531,-500.0,0.0001125,2]
[347814353,1736125841540,-500.0,0.0001125,2]
[347814355,1736125841549,-500.0,0.0001125,2]
[347814357,1736125841558,-500.0,0.0001125,2]
[347814359,1736125841568,-165.0,0.0001125,2]
[347814361,1736125841578,-500.0,0.0001125,2]
[347814363,1736125841587,-500.0,0.0001125,2]
[347814365,1736125841596,-500.0,0.0001125,2]
[347814367,1736125841605,-500.0,0.0001125,2]
[347814369,1736125841614,-500.0,0.0001125,2]
[347814371,1736125841623,-500.0,0.0001125,2]
[347814373,1736125841633,-500.0,0.0001125,2]
[347814375,1736125841641,-500.0,0.0001125,2]
[347814377,1736125841651,-500.0,0.0001125,2]
[347814379,1736125841661,-350.11,0.0001125,2]
[347814381,1736125841670,-500.0,0.0001125,2]
[347814383,1736125841679,-500.0,0.0001125,2]
[347814385,1736125841688,-500.0,0.0001125,2]
[347814387,1736125841697,-500.0,0.0001125,2]
[347814389,1736125841706,-500.0,0.0001125,2]
[347814391,1736125841715,-500.0,0.0001125,2]
[347814393,1736125841724,-500.0,0.0001125,2]
[347814394,1736125841732,-500.0,0.0001125,2]
[347814396,1736125841742,-500.0,0.0001125,2]
[347814398,1736125841751,-500.0,0.0001125,2]
[347814400,1736125841761,-500.0,0.0001125,2]
[347814402,1736125841770,-500.0,0.0001125,2]
[347814404,1736125841779,-500.0,0.0001125,2]
[347814406,1736125841788,-500.0,0.0001125,2]
[347814408,1736125841797,-500.0,0.0001125,2]
[347814410,1736125841806,-347.82,0.0001125,2]
[347814412,1736125841815,-500.0,0.0001125,2]
[347814414,1736125841824,-500.0,0.0001125,2]
[347814416,1736125841835,-500.0,0.0001125,2]
[347814418,1736125841844,-500.0,0.0001125,2]
[347814420,1736125841853,-500.0,0.0001125,2]
[347814422,1736125841862,-500.0,0.0001125,2]
[347814424,1736125841871,-500.0,0.0001125,2]
[347814426,1736125841880,-500.0,0.0001125,2]
[347814428,1736125841889,-445.36,0.0001125,2]
[347814430,1736125841898,-500.0,0.0001125,2]
[347814432,1736125841907,-500.0,0.0001125,2]
[347814434,1736125841917,-500.0,0.0001125,2]
[347814436,1736125841929,-500.0,0.0001125,2]
[347814438,1736125841939,-500.0,0.0001125,2]
[347814440,1736125841947,-500.0,0.0001125,2]
[347814442,1736125841956,-500.0,0.0001125,2]
[347814444,1736125841966,-500.0,0.0001125,2]
[347814446,1736125841975,-500.0,0.0001125,2]
[347814448,1736125841984,-500.0,0.0001125,2]
[347814450,1736125841994,-211.51684635,0.0001125,2]
[347814452,1736125842004,-500.0,0.0001125,2]
[347814454,1736125842013,-500.0,0.00011264,2]
[347814456,1736125842022,-500.0,0.00011264,2]
[347814458,1736125842031,-428.07,0.00011271,2]
[347814460,1736125842044,-376.69429251,0.00011271,2]
[347814461,1736125842053,-500.0,0.00011271,2]
[347814464,1736125842062,-500.0,0.00011271,2]
[347814465,1736125842071,-500.0,0.00011271,2]
[347814468,1736125842081,-500.0,0.00011271,2]
[347814470,1736125842091,-461.33,0.00011271,2]
[347814472,1736125842100,-500.0,0.00011271,2]
[347814474,1736125842109,-500.0,0.00011271,2]
[347814475,1736125842118,-500.0,0.00011271,2]
[347814477,1736125842127,-500.0,0.00011271,2]
[347814479,1736125842136,-500.0,0.00011271,2]
[347814481,1736125842145,-1358.79,0.00011271,2]
[347814483,1736125842154,-500.0,0.00011271,2]
[347814485,1736125842165,-1308.12,0.00011271,2]
[347814488,1736125842174,-500.0,0.00011271,2]
[347814489,1736125842183,-500.0,0.00011271,2]
[347814491,1736125842192,-481.77,0.00011271,2]
[347814493,1736125842202,-500.0,0.00011271,2]
[347814495,1736125842211,-500.0,0.00011271,2]
[347814497,1736125842220,-500.0,0.00011271,2]
[347814499,1736125842229,-355.96706101,0.00011271,2]
[347814501,1736125842238,-500.0,0.00011271,2]
[347814503,1736125842247,-1499.99,0.00011304,2]
[347814505,1736125842256,-3348.23456021,0.00011304,2]
[347814509,1736125842282,-412.52538273,0.00010124,2]
[347814511,1736125842294,-87.47461727,0.00010124,2]
[347814512,1736125842303,-970.22538273,0.00011304,2]
[347814513,1736125842321,-269.24235348,0.00010997,2]
[347814514,1736125842332,-230.75764652,0.00010997,2]
[347814515,1736125842342,-251.47415706,0.00011304,2]
[347814516,1736125842351,-99.44870424,0.0001131,2]
[347814517,1736125842363,-311.97029576,0.0001131,2]
[347814518,1736125842373,-81.17970424,0.00011372,7]
[347814519,1736125842683,-253.16910791,9.236e-05,2]
[347814520,1736125842693,-500.0,0.00010672,2]
[347814521,1736125842703,-500.0,0.00010946,2]
[347814522,1736125842713,-503.88,0.00010976,2]
[347814523,1736125842723,-500.0,0.00010976,2]
[347814524,1736125842732,-970.37,0.00011098,2]
[347814525,1736125842742,-500.0,0.0001122,2]
[347814526,1736125842751,-418.82029576,0.00011372,7]
[347814527,1736125842761,-500.0,0.00011372,2]
[347814528,1736125842771,-424.65726477,0.00011372,2]
[347814529,1736125842780,-500.0,0.00011372,2]
[347814530,1736125842790,-500.0,0.00011372,2]
[347814531,1736125842800,-500.0,0.00011372,2]
[347814532,1736125842809,-500.0,0.00011372,2]
[347814533,1736125842819,-500.0,0.00011372,2]
[347814534,1736125842829,-500.0,0.00011372,2]
[347814535,1736125842839,-500.0,0.00011372,2]
[347814536,1736125842849,-500.0,0.00011372,2]
[347814537,1736125842859,-500.0,0.00011372,2]
[347814538,1736125842868,-500.0,0.00011372,2]
[347814539,1736125842878,-500.0,0.00011372,2]
[347814540,1736125842888,-500.0,0.00011372,2]
[347814541,1736125842898,-500.0,0.00011372,2]
[347814542,1736125842907,-500.0,0.00011372,2]
[347814543,1736125842919,-500.0,0.00011372,2]
[347814544,1736125842933,-500.0,0.00011372,2]
[347814545,1736125842944,-500.0,0.00011372,2]
[347814546,1736125842954,-500.0,0.00011372,2]
[347814548,1736125842963,-500.0,0.00011372,2]
[347814549,1736125842974,-500.0,0.00011372,2]
[347814550,1736125842983,-500.0,0.00011372,2]
[347814552,1736125842994,-500.0,0.00011372,2]
[347814553,1736125843003,-500.0,0.00011372,2]
[347814555,1736125843013,-983.65,0.00011372,2]
[347814556,1736125843023,-500.0,0.00011372,2]
[347814557,1736125843032,-500.0,0.00011372,2]
[347814558,1736125843042,-500.0,0.00011372,2]
[347814559,1736125843052,-563.13,0.00011372,2]
[347814560,1736125843061,-500.0,0.00011372,2]
[347814561,1736125843071,-500.0,0.00011372,2]
[347814562,1736125843080,-500.0,0.00011372,2]
[347814563,1736125843090,-500.0,0.00011372,2]
[347814564,1736125843101,-500.0,0.00011372,2]
[347814565,1736125843110,-1532.45,0.00011372,2]
[347814567,1736125843120,-708.7,0.00011372,2]
[347814568,1736125843130,-500.0,0.00011372,2]
[347814571,1736125843139,-2125.23,0.00011372,2]
[347814572,1736125843150,-500.0,0.00011372,2]
[347814575,1736125843160,-591.98,0.00011372,2]
[347814576,1736125843170,-500.0,0.00011372,2]
[347814578,1736125843180,-500.0,0.00011372,2]
[347814580,1736125843190,-1735.71,0.00011372,2]
[347814582,1736125843199,-500.0,0.00011372,2]
[347814584,1736125843208,-854.08,0.00011372,2]
[347814586,1736125843218,-1162.05,0.00011372,2]
[347814588,1736125843227,-533.6,0.00011372,2]
[347814590,1736125843237,-610.78,0.00011372,2]
[347814592,1736125843246,-1732.09,0.00011372,2]
[347814594,1736125843256,-612.43960121,0.00011372,2]
[347814596,1736125843268,-10.15039879,0.00011372,2]
[347814598,1736125843278,-500.0,0.00011372,2]
[347814600,1736125843287,-500.0,0.00011372,2]
[347814603,1736125843297,-500.0,0.00011372,2]
[347814605,1736125843306,-500.0,0.00011372,2]
[347814606,1736125843316,-500.0,0.00011372,2]
[347814609,1736125843326,-970.37,0.00011372,2]
[347814611,1736125843336,-500.0,0.00011373,2]
[347814613,1736125843345,-500.0,0.00011373,2]
[347814615,1736125843354,-621.33,0.00011373,2]
[347814617,1736125843363,-500.0,0.00011373,2]
[347814619,1736125843373,-1340.86,0.00011373,2]
[347814621,1736125843383,-4131.12,0.00011373,2]
[347814623,1736125843392,-500.0,0.00011373,2]
[347814625,1736125843402,-500.0,0.00011373,2]
[347814627,1736125843411,-500.0,0.00011373,2]
[347814629,1736125843421,-2628.39,0.00011373,2]
[347814631,1736125843431,-500.0,0.00011373,2]
[347814633,1736125843441,-500.0,0.00011373,2]
[347814635,1736125843450,-685.19,0.00011373,2]
[347814637,1736125843459,-500.0,0.00011373,2]
[347814639,1736125843468,-545.22,0.00011373,2]
[347814641,1736125843478,-1000.0,0.00011373,2]
[347814642,1736125843487,-500.0,0.00011373,2]
[347814644,1736125843496,-500.0,0.00011373,2]
[347814646,1736125843506,-980.41,0.00011373,2]
[347814648,1736125843515,-506.17,0.00011373,2]
[347814650,1736125843525,-150.0,0.00011479,2]
[347814652,1736125843534,-150.0,0.00011479,2]
[347814653,1736125843544,-150.0,0.00011479,2]
[347814654,1736125843553,-150.0,0.00011479,2]
[347814655,1736125843563,-150.0,0.00011479,2]
[347814656,1736125843572,-708.48,0.00011494,2]
[347814657,1736125843582,-821.81,0.00011494,2]
[347814658,1736125843591,-500.0,0.00011494,2]
[347814659,1736125843601,-712.07,0.00011494,2]
[347814660,1736125843610,-500.0,0.00011494,2]
[347814661,1736125843620,-500.0,0.00011494,2]
[347814662,1736125843629,-678.05,0.00011494,2]
[347814663,1736125843639,-548.16,0.00011494,2]
[347814664,1736125843649,-523.11,0.00011494,2]
[347814665,1736125843658,-531.8,0.00011494,2]
[347814666,1736125843669,-2539.72,0.00011494,2]
[347814667,1736125843679,-325.12117217,0.00011494,2]
[347814668,1736125843689,-3002.372011,0.000115,2]
[347814669,1736125843699,-500.0,0.00011523,2]
[347814670,1736125843709,-374.4,0.00011523,2]
[347814671,1736125843718,-500.0,0.00011523,2]
[347814672,1736125843728,-562.44,0.00011523,2]
[347814674,1736125843737,-1317.54,0.00011523,2]
[347814676,1736125843747,-500.0,0.00011523,2]
[347814678,1736125843757,-500.0,0.00011523,2]
[347814680,1736125843766,-500.0,0.00011523,2]
[347814682,1736125843776,-649.51415731,0.00011523,2]
[347814684,1736125843785,-1754.83,0.00011523,2]
[347814685,1736125843794,-631.16,0.00011523,2]
[347814687,1736125843804,-500.0,0.00011524,2]
[347814689,1736125843814,-500.0,0.00011524,2]
[347814692,1736125843824,-500.0,0.00011524,2]
[347814693,1736125843834,-500.0,0.00011524,2]
[347814695,1736125843844,-500.0,0.00011524,2]
[347814696,1736125843853,-529.37,0.00011524,2]
[347814697,1736125843862,-500.0,0.00011524,2]
[347814698,1736125843871,-500.0,0.00011524,2]
[347814699,1736125843880,-500.0,0.00011524,2]
[347814700,1736125843890,-500.0,0.00011524,2]
[347814701,1736125843899,-500.0,0.00011524,2]
[347814702,1736125843908,-500.0,0.00011524,2]
[347814703,1736125843918,-324.22,0.00011524,2]
[347814704,1736125843930,-500.0,0.00011524,2]
[347814706,1736125843939,-500.0,0.00011524,2]
[347814707,1736125843948,-500.0,0.00011524,2]
[347814709,1736125843958,-500.0,0.00011524,2]
[347814711,1736125843968,-500.0,0.00011524,2]
[347814713,1736125843978,-500.0,0.00011524,2]
[347814715,1736125843988,-500.0,0.00011524,2]
[347814718,1736125843998,-500.0,0.00011524,2]
[347814719,1736125844009,-467.19082717,0.00011524,2]
[347814723,1736125844031,-32.80917283,0.00011524,2]
[347814724,1736125844040,-530.25,0.00011524,2]
[347814726,1736125844050,-500.0,0.00011524,2]
[347814729,1736125844060,-500.0,0.00011524,2]
[347814731,1736125844070,-500.0,0.00011524,2]
[347814733,1736125844080,-500.0,0.00011524,2]
[347814735,1736125844090,-500.0,0.00011524,2]
[347814737,1736125844099,-305.72,0.00011524,2]
[347814739,1736125844109,-500.0,0.00011524,2]
[347814741,1736125844119,-500.0,0.00011524,2]
[347814743,1736125844129,-500.0,0.00011524,2]
[347814745,1736125844138,-500.0,0.00011524,2]
[347814747,1736125844148,-500.0,0.00011524,2]
[347814749,1736125844158,-500.0,0.00011524,2]
[347814751,1736125844170,-500.0,0.00011524,2]
[347814753,1736125844180,-500.0,0.00011524,2]
[347814755,1736125844190,-500.0,0.00011524,2]
[347814757,1736125844200,-500.0,0.00011524,2]
[347814759,1736125844210,-500.0,0.00011524,2]
[347814761,1736125844220,-500.0,0.00011524,2]
[347814763,1736125844229,-500.0,0.00011524,2]
[347814765,1736125844239,-500.0,0.00011524,2]
[347814767,1736125844248,-500.0,0.00011524,2]
[347814769,1736125844259,-500.0,0.00011524,2]
[347814771,1736125844268,-500.0,0.00011524,2]
[347814773,1736125844278,-500.0,0.00011524,2]
[347814775,1736125844288,-500.0,0.00011524,2]
[347814777,1736125844298,-500.0,0.00011524,2]
[347814779,1736125844308,-500.0,0.00011524,2]
[347814781,1736125844317,-500.0,0.00011524,2]
[347814783,1736125844327,-500.0,0.00011524,2]
[347814785,1736125844337,-500.0,0.00011524,2]
[347814787,1736125844347,-500.0,0.00011524,2]
[347814789,1736125844357,-500.0,0.00011524,2]
[347814791,1736125844367,-500.0,0.00011524,2]
[347814793,1736125844377,-500.0,0.00011524,2]
[347814795,1736125844387,-500.0,0.00011524,2]
[347814797,1736125844397,-500.0,0.00011524,2]
[347814819,1736125844585,-500.0,0.00011524,2]
[347814821,1736125844600,-500.0,0.00011524,2]
[347814823,1736125844610,-500.0,0.00011524,2]
[347814825,1736125844620,-500.0,0.00011524,2]
[347814828,1736125844630,-500.0,0.00011524,2]
[347814830,1736125844641,-500.0,0.00011524,2]
[347814832,1736125844650,-500.0,0.00011524,2]
[347814834,1736125844659,-500.0,0.00011524,2]
[347814836,1736125844671,-500.0,0.00011524,2]
[347814838,1736125844680,-170.4410419,0.00011524,2]
[347814864,1736125844919,-329.5589581,0.00011524,2]
[347814866,1736125844934,-490.96,0.00011524,2]
[347814868,1736125844943,-479.4810419,0.00011524,2]
[347814870,1736125844955,-20.5189581,0.00011524,2]
[347814872,1736125844964,-500.0,0.00011524,2]
[347814874,1736125844974,-500.0,0.00011524,2]
[347814876,1736125844983,-500.0,0.00011524,2]
[347814878,1736125844993,-500.0,0.00011524,2]
[347814880,1736125845004,-500.0,0.00011524,2]
[347814882,1736125845013,-500.0,0.00011524,2]
[347814884,1736125845022,-500.0,0.00011524,2]
[347814886,1736125845031,-500.0,0.00011524,2]
[347814888,1736125845040,-500.0,0.00011524,2]
[347814890,1736125845050,-500.0,0.00011524,2]
[347814892,1736125845060,-500.0,0.00011524,2]
[347814894,1736125845069,-500.0,0.00011524,2]
[347814896,1736125845079,-500.0,0.00011524,2]
[347814898,1736125845088,-312.58,0.00011524,2]
[347814900,1736125845097,-500.0,0.00011524,2]
[347814902,1736125845106,-500.0,0.00011524,2]
[347814904,1736125845116,-500.0,0.00011524,2]
[347814906,1736125845126,-649.22,0.00011545,2]
[347814908,1736125845135,-500.0,0.00011545,2]
[347814910,1736125845144,-500.0,0.00011545,2]
[347814912,1736125845153,-500.0,0.00011545,2]
[347814914,1736125845163,-500.0,0.00011545,2]
[347814916,1736125845173,-500.0,0.00011545,2]
[347814918,1736125845183,-500.0,0.00011545,2]
[347814920,1736125845192,-500.0,0.00011545,2]
[347814922,1736125845201,-500.0,0.00011545,2]
[347814924,1736125845210,-1308.12,0.00011545,2]
[347814926,1736125845219,-317.01652376,0.00011545,2]
[347814929,1736125845241,-182.98347624,0.00011545,2]
[347814931,1736125845251,-441.44,0.00011545,2]
[347814933,1736125845260,-272.35,0.00011545,2]
[347814935,1736125845269,-83.22652376,0.00011546,2]
[347814937,1736125845280,-760.44657624,0.00011546,2]
[347814939,1736125845289,-5832.7992,0.00011546,2]
[347814941,1736125845299,-1486.7403,0.00011546,2]
[347814943,1736125845308,-429.58022011,0.00011625,2]
[347814945,1736125845317,-500.0,0.00011646,7]
[347814947,1736125845326,-1097.58,0.00011646,2]
[347814949,1736125845335,-500.0,0.00011646,2]
[347814951,1736125845344,-500.0,0.00011646,2]
[347814953,1736125845354,-351.9,0.00011646,2]
[347814955,1736125845363,-500.0,0.00011646,2]
[347814957,1736125845372,-624.34,0.00011646,2]
[347814959,1736125845381,-500.0,0.00011646,2]
[347814961,1736125845392,-500.0,0.00011646,2]
[347814963,1736125845401,-500.0,0.00011646,2]
[347814965,1736125845411,-477.34,0.00011646,2]
[347814967,1736125845421,-500.0,0.00011646,2]
[347814969,1736125845430,-500.0,0.00011646,2]
[347814971,1736125845440,-500.0,0.00011646,2]
[347814973,1736125845449,-500.0,0.00011646,2]
[347814975,1736125845458,-500.0,0.00011646,2]
[347814977,1736125845468,-500.0,0.00011646,2]
[347814979,1736125845478,-500.0,0.00011646,2]
[347814981,1736125845487,-500.0,0.00011646,2]
[347814983,1736125845496,-500.0,0.00011646,2]
[347814985,1736125845506,-983.65,0.00011646,2]
[347814987,1736125845515,-500.0,0.00011646,2]
[347814989,1736125845525,-271.03,0.00011646,2]
[347814991,1736125845535,-500.0,0.00011646,2]
[347814993,1736125845543,-563.13,0.00011646,2]
[347814995,1736125845553,-500.0,0.00011646,2]
[347814997,1736125845562,-500.0,0.00011646,2]
[347814999,1736125845571,-500.0,0.00011646,2]
[347815001,1736125845581,-507.63,0.00011646,2]
[347815003,1736125845589,-500.0,0.00011646,2]
[347815005,1736125845599,-1532.45,0.00011646,2]
[347815007,1736125845608,-708.7,0.00011646,2]
[347815009,1736125845617,-500.0,0.00011646,2]
[347815011,1736125845627,-2125.23,0.00011646,2]
[347815013,1736125845636,-500.0,0.00011646,2]
[347815015,1736125845646,-591.98,0.00011646,2]
[347815017,1736125845655,-500.0,0.00011646,2]
[347815019,1736125845664,-500.0,0.00011646,2]
[347815021,1736125845673,-1735.71,0.00011646,2]
[347815023,1736125845683,-500.0,0.00011646,2]
[347815025,1736125845693,-854.08,0.00011646,2]
[347815027,1736125845702,-1162.05,0.00011646,2]
[347815029,1736125845712,-533.6,0.00011646,2]
[347815031,1736125845721,-610.78,0.00011646,2]
[347815033,1736125845730,-1732.09,0.00011646,2]
[347815035,1736125845739,-622.59,0.00011646,2]
[347815037,1736125845748,-500.0,0.00011646,2]
[347815039,1736125845757,-500.0,0.00011646,2]
[347815041,1736125845767,-500.0,0.00011646,2]
[347815043,1736125845777,-960.58787539,0.00011646,2]
[347815045,1736125845790,-9.78212461,0.00011646,2]
[347815047,1736125845799,-1483.37,0.00011646,2]
[347815049,1736125845808,-500.0,0.00011647,2]
[347815051,1736125845818,-348.7,0.00011647,2]
[347815053,1736125845827,-621.33,0.00011647,2]
[347815055,1736125845836,-500.0,0.00011647,2]
[347815057,1736125845846,-1340.86,0.00011647,2]
[347815059,1736125845855,-4131.12,0.00011647,2]
[347815061,1736125845864,-500.0,0.00011647,2]
[347815063,1736125845875,-500.0,0.00011647,2]
[347815065,1736125845886,-500.0,0.00011647,2]
[347815067,1736125845895,-2628.39,0.00011647,2]
[347815070,1736125845905,-500.0,0.00011647,2]
[347815072,1736125845915,-500.0,0.00011647,2]
[347815074,1736125845928,-685.19,0.00011647,2]
[347815076,1736125845938,-500.0,0.00011647,2]
[347815078,1736125845947,-545.22,0.00011647,2]
[347815080,1736125845956,-1000.0,0.00011647,2]
[347815083,1736125845966,-500.0,0.00011647,2]
[347815086,1736125845975,-500.0,0.00011647,2]
[347815089,1736125845984,-980.41,0.00011647,2]
[347815092,1736125845994,-506.17,0.00011647,2]
[347815095,1736125846003,-3719.45787539,0.000117,2]
[347815098,1736125846015,-9445.1,0.000117,2]
[347815101,1736125846026,-23913.94132461,0.000117,2]
[347815104,1736125846035,-529.43208801,0.000117,2]
[347815108,1736125846044,-156.65939502,0.000117,2]
[347815112,1736125846053,-1000.0,0.000117,2]
[347815116,1736125846062,-198.98827047,0.000117,2]
[347815121,1736125846071,-1190.17309702,0.000117,2]
[347815125,1736125846081,-156.659395,0.0001172,2]
[347815129,1736125846090,-156.659395,0.0001174,2]
[347815134,1736125846099,-150.99,0.00011753,2]
[347815137,1736125846108,-529.43208792,0.00011754,2]
[347815141,1736125846117,-156.659395,0.0001176,2]
[347815145,1736125846126,-708.48,0.00011768,2]
[347815150,1736125846142,-821.81,0.00011768,2]
[347815153,1736125846155,-337.65,0.00011768,2]
[347815156,1736125846169,-712.07,0.00011768,2]
[347815158,1736125846180,-500.0,0.00011768,2]
[347815161,1736125846192,-500.0,0.00011768,2]
[347815163,1736125846203,-523.11,0.00011768,2]
[347815165,1736125846216,-531.8,0.00011768,2]
[347815168,1736125846228,-2539.72,0.00011768,2]
[347815170,1736125846240,-156.659395,0.0001178,2]
[347815172,1736125846252,-2843.33149688,0.0001178,2]
[347815174,1736125846265,-150.0,0.00011781,2]
[347815177,1736125846277,-150.0,0.00011781,2]
[347815179,1736125846288,-500.0,0.00011797,2]
[347815181,1736125846299,-562.44,0.00011797,2]
[347815183,1736125846310,-1317.54,0.00011797,2]
[347815185,1736125846320,-500.0,0.00011797,2]
[347815188,1736125846333,-500.0,0.00011797,2]
[347815190,1736125846344,-500.0,0.00011797,2]
[347815192,1736125846356,-1754.83,0.00011797,2]
[347815194,1736125846368,-631.16,0.00011797,2]
[347815195,1736125846380,-500.0,0.00011798,2]
[347815196,1736125846392,-500.0,0.00011798,2]
[347815197,1736125846403,-270.78,0.00011798,2]
[347815198,1736125846415,-262.8,0.00011798,2]
[347815199,1736125846427,-500.0,0.00011798,2]
[347815200,1736125846438,-500.0,0.00011798,2]
[347815201,1736125846449,-500.0,0.00011798,2]
[347815204,1736125846462,-500.0,0.00011798,2]
[347815206,1736125846474,-500.0,0.00011798,2]
[347815208,1736125846485,-537.15,0.00011798,2]
[347815210,1736125846496,-500.0,0.00011798,2]
[347815214,1736125846520,-500.0,0.00011798,2]
[347815216,1736125846532,-159.39,0.00011798,2]
[347815218,1736125846544,-206.73,0.00011798,2]
[347815221,1736125846560,-500.0,0.00011798,2]
[347815224,1736125846577,-422.66,0.00011798,2]
[347815227,1736125846592,-198.63,0.00011798,2]
[347815229,1736125846605,-500.0,0.00011798,2]
[347815231,1736125846618,-500.0,0.00011798,2]
[347815234,1736125846631,-500.0,0.00011798,2]
[347815236,1736125846642,-500.0,0.00011798,2]
[347815238,1736125846653,-500.0,0.00011798,2]
[347815240,1736125846665,-500.0,0.00011798,2]
[347815243,1736125846678,-500.0,0.00011798,2]
[347815245,1736125846694,-176.51763976,0.00011798,2]
[347815248,1736125846705,-500.0,0.00011798,2]
[347815250,1736125846715,-506.72,0.00011798,2]
[347815252,1736125846726,-500.0,0.00011798,2]
[347815254,1736125846736,-500.0,0.00011798,2]
[347815256,1736125846747,-500.0,0.00011798,2]
[347815258,1736125846760,-598.16,0.00011798,2]
[347815261,1736125846773,-500.0,0.00011798,2]
[347815263,1736125846784,-500.0,0.00011798,2]
[347815265,1736125846795,-500.0,0.00011798,2]
[347815267,1736125846805,-500.0,0.00011798,2]
[347815269,1736125846816,-500.0,0.00011798,2]
[347815271,1736125846827,-500.0,0.00011798,2]
[347815274,1736125846839,-500.0,0.00011798,2]
[347815276,1736125846855,-500.0,0.00011798,2]
[347815279,1736125846868,-500.0,0.00011798,2]
[347815281,1736125846880,-500.0,0.00011798,2]
[347815283,1736125846892,-500.0,0.00011798,2]
[347815286,1736125846903,-500.0,0.00011798,2]
[347815288,1736125846914,-500.0,0.00011798,2]